Workbook

Sheet KTEP Measures Summary
A1: ATTACHMENT 2
A2: Summary of Energy Measures in Loan Request
A3: For each application, list the project measures for which you are requesting a loan and identify the estimated savings, project cost and payback for each project measure.
A4: All columns except for H, J, and L, should total at the end of the table. Insert more rows as needed.
A5: <-----------------------------------------------Applicant to enter data in these columns----------------------------------> | I5: <--------Auto filled columns--------> | L5: <---CEC Staff's Review--->
A6: Project Measure / Location | B6: Measure Installation Cost ($)* | C6: Peak Demand Savings (kW) | D6: Annual Electric Savings (kWh) | E6: Annual Natural Gas Savings (therms) | F6: Annual Other Energy Savings (specify units) | G6: Measure Annual Cost Savings ($) | H6: EUL (years)** (EUL Considered for 0% Loans will be lesser of actual EUL or 15 Years) | I6: Measure Cost Savings over EUL ($) | J6: Measure Payback (years) | K6: GHG Emissions Reduction (Metric Tons) | L6: Measure Revised EUL (max. 15 years for 0% Loans) | M6: Measure Cost Savings ($)
I7: =G7*H7 -> 0 | J7: =B7/G7 ->  | K7: =D7*(0.0002106) -> 0 | L7: =MIN(H7,15) -> 15 | M7: =+L7*G7 -> 0
I8: =G8*H8 -> 0 | J8: =B8/G8 ->  | K8: =D8*(0.0002106) -> 0 | L8: =MIN(H8,15) -> 15 | M8: =+L8*G8 -> 0
I9: 0 | K9: 0 | L9: =MIN(H9,15) -> 15 | M9: 0
I10: 0 | K10: 0 | L10: =MIN(H10,15) -> 15 | M10: 0
A11: TOTAL | B11: =SUM(B7:B10) -> 0 | C11: =SUM(C7:C10) -> 0 | D11: =SUM(D7:D10) -> 0 | E11: =SUM(E7:E10) -> 0 | F11: =SUM(F7:F7) -> 0 | G11: =SUM(G7:G10) -> 0 | I11: =SUM(I7:I10) -> 0 | K11: =SUM(K7:K10) -> 0 | M11: =SUM(M7:M10) -> 0
H12: Loan Amount: | J12: =MIN(B11,I11,3000000) -> 0 | L12: ** Loan Amount:
H13: Payback Period (years): | J13: =+J12/G11 ->  | L13: Payback Period (years):
A15: * Measure Installation Cost shall include all labor, engineering, construction, materials, equipment, inspection, demolition (if applicable), and removal (if applicable) less equipment salvage value (if applicable).
A16: ** Loan amount will be lesser of $3 million; measure installation cost; or measure cost savings over EUL of individual measures.
A17: ** If EUL of a measure is less than 15 years, borrower can use EUL up to 15 years provided its operational warranty certificate is provided by the manufacturer / supplier.

Sheet Example
A1: ATTACHMENT 2
A2: Summary of Energy Efficiency Measures in Loan Request
A3: For each application, list the project measures for which you are requesting a loan and identify the estimated savings, project cost and payback for each project measure.
A4: All columns except for H, J, and L, should total at the end of the table. Insert more rows as needed.
A5: <-----------------------------------------------Applicant to enter data in these columns-------------------------------------------------> | I5: <--------Auto filled columns--------> | L5: <----CEC Staff's Review----->
A6: Project Measure / Location | B6: Measure Installation Cost ($)* | C6: Peak Demand Savings (kW) | D6: Annual Electric Savings (kWh) | E6: Annual Natural Gas Savings (therms) | F6: Annual Other Energy Savings (specify units) | G6: Measure Annual Cost Savings ($) | H6: EUL (years)** (EUL Considered for 0% Loans will be lesser of actual EUL or 15 Years) | I6: Measure Cost Savings over EUL ($) | J6: Measure Payback (years) | K6: GHG Emissions Reduction (Metric Tons) | L6: Measure Revised EUL (max. 15 years for 0% Loans) | M6: Measure Cost Savings ($)
A7: Middle School: Replace split system with 5 ton condenser and furnace | B7: 15688 | D7: 412 | E7: 450 | G7: 558 | H7: 15 | I7: =G7*H7 -> 8370 | J7: =B7/G7 -> 28.11469534 | K7: =D7*(0.0002106) -> 0.0867672 | L7: =MIN(H7,20) -> 15 | M7: =+L7*G7 -> 8370
A8: Maintenance Building: Install 231 LED fixtures | B8: 38707 | D8: 22393 | E8: 0 | G8: 5374 | H8: 15 | I8: =G8*H8 -> 80610 | J8: =B8/G8 -> 7.202642352 | K8: =D8*(0.0002106) -> 4.7159658 | L8: =MIN(H8,20) -> 15 | M8: =+L8*G8 -> 80610
A9: High School: Replace 600,000 BTU boiler system | B9: 106618 | D9: 894 | E9: 3398 | G9: 3681 | H9: 15 | I9: 55215 | J9: 28.96441184 | K9: 0.1882764 | L9: 15 | M9: 55215
A10: District Office: lnstall 94 kW PV system | B10: 378460 | D10: 126422 | E10: 0 | G10: 30341 | H10: 15 | I10: 455115 | J10: 12.47355064 | K10: 26.6244732 | L10: 15 | M10: 455115
A11: TOTAL | B11: =SUM(B7:B10) -> 539473 | C11: =SUM(C7:C10) -> 0 | D11: =SUM(D7:D10) -> 150121 | E11: =SUM(E7:E10) -> 3848 | F11: =SUM(F7:F7) -> 0 | G11: =SUM(G7:G10) -> 39954 | I11: =SUM(I7:I10) -> 599310 | K11: =SUM(K7:K10) -> 31.6154826 | M11: =SUM(M7:M10) -> 599310
H12: Loan Amount: | J12: =MIN(B11,I11,3000000) -> 539473 | L12: ** Loan Amount:
H13: Payback Period (years): | J13: =+J12/G11 -> 13.50235271 | L13: Payback Period (years):
A18: * Measure Installation Cost shall include all labor, engineering, construction, materials, equipment, inspection, demolition (if applicable), and removal (if applicable) less equipment salvage
A19: value (if applicable).
A20: ** If EUL of a measure is less than 15 years, borrower can use EUL up to 15 years provided its operational warranty certificate is provided by the manufacturer / supplier.
